[Event "ARM-ch Club 2018"]
[Site "Yerevan"]
[Date "2018.06.13"]
[Round "6"]
[White "Baghdasaryan, Vahe"]
[Black "Davtyan, David Arm"]
[Result "1-0"]
[ECO "B67"]
[WhiteElo "2406"]
[BlackElo "1958"]
[Annotator "NA"]
[PlyCount "57"]
[EventDate "2018.??.??"]
[EventCountry "ARM"]
[SourceTitle "playchess.com"]
[Source "ChessBase"]
[SourceQuality "1"]
[TimeControl "5400+30"]

1. e4 {[%emt 0:00:00]} c5 {[%emt 0:00:12]} 2. Nf3 {[%emt 0:00:00]} d6 {[%emt 0:00:05]} 3. d4 {[%emt 0:00:00]} cxd4 {[%emt 0:00:03]} 4. Nxd4 {[%emt 0:00:00]} Nf6 {[%emt 0:00:07]} 5. Nc3 {[%emt 0:00:01]} Nc6 {[%emt 0:00:03]} 6. Bg5 {[%emt 0:00:49]} e6 {[%emt 0:00:25]} 7. Qd2 {[%emt 0:00:19]} a6 {[%emt 0:00:12]} 8. O-O-O {[%emt 0:00:31]} Bd7 {[%emt 0:00:29]} 9. f4 {[%emt 0:00:54]} b5 {[%emt 0:00:07]} 10. Bxf6 {[%emt 0:04:01]} gxf6 {[%emt 0:00:07]} 11. f5 {[%emt 0:11:59] LiveBook: 112 Partien} b4 {[%emt 0:01:45]} 12. fxe6 {[%emt 0:01:03]} fxe6 {[%emt 0:00:18]} 13. Nce2 {[%emt 0:01:19]} Qa5 {[%emt 0:02:16] [#]} 14. Kb1 $1 {[%emt 0:10:25]} Qe5 {[%emt 0:01:24]} 15. Nxc6 {[%emt 0:14:43]} Bxc6 {[%emt 0:00:09]} 16. Qxb4 {[%emt 0:00:16]} Bxe4 {[%emt 0:02:58]} 17. Nc3 {[%emt 0:08:22]} Bc6 {[%emt 0:01:25]} 18. Bc4 {[%emt 0:04:34]} Qc5 {[%emt 0:09:01]} 19. Qxc5 {[%emt 0:08:18]} dxc5 {[%emt 0:00:07]} 20. Bxe6 {[%emt 0:00:16]} Bxg2 {[%emt 0:01:22]} 21. Rhe1 {[%emt 0:00:27]} Be7 {[%emt 0:00:10]} 22. Rd7 {[%emt 0:10:44]} Rd8 {[%emt 0:01:32]} 23. Rc7 {[%emt 0:04:20]} Kf8 {[%emt 0:00:24]} 24. Bb3 {[%emt 0:00:27]} Re8 {[%emt 0:00:35]} 25. Ba4 {[%emt 0:00:13]} Kf7 {[%emt 0:00:07]} 26. Bb3+ {[%emt 0:01:42]} Kf8 {[%emt 0:00:20]} 27. Na4 {[%emt 0:00:48]} h5 {[%emt 0:01:15]} 28. Nxc5 {[%emt 0:00:26]} Bh3 {[%emt 0:00:18]} 29. Ba4 {[%emt 0:02:55]} 1-0

[Event "ARM-ch Club 2018"]
[Site "Yerevan"]
[Date "2018.06.13"]
[Round "6"]
[White "Mirzoyan, Davit T"]
[Black "Hakobyan, Hakob V"]
[Result "1-0"]
[ECO "D18"]
[WhiteElo "2381"]
[BlackElo "2114"]
[Annotator "NA"]
[PlyCount "269"]
[EventDate "2018.??.??"]
[EventCountry "ARM"]
[SourceTitle "playchess.com"]
[Source "ChessBase"]
[SourceQuality "1"]
[TimeControl "5400+30"]

1. d4 {[%emt 0:00:00]} d5 {[%emt 0:00:03]} 2. Nf3 {[%emt 0:00:00]} Nf6 {[%emt 0:00:05]} 3. c4 {[%emt 0:00:04]} c6 {[%emt 0:00:02]} 4. Nc3 {[%emt 0:00:14]} dxc4 {[%emt 0:00:04]} 5. a4 {[%emt 0:00:04]} Bf5 {[%emt 0:00:03]} 6. e3 {[%emt 0:00:05]} e6 {[%emt 0:00:03]} 7. Bxc4 {[%emt 0:00:07]} Bb4 {[%emt 0:00:02]} 8. O-O {[%emt 0:00:09]} Nbd7 {[%emt 0:00:03]} 9. Qe2 {[%emt 0:00:07]} O-O {[%emt 0:00:05]} 10. e4 {[%emt 0:00:08]} Bg6 {[%emt 0:00:10]} 11. Bd3 {[%emt 0:00:05]} Bh5 {[%emt 0:00:09]} 12. e5 {[%emt 0:00:11]} Nd5 {[%emt 0:00:04]} 13. Nxd5 {[%emt 0:00:04]} cxd5 {[%emt 0:00:03]} 14. Qe3 {[%emt 0:00:05]} Bg6 {[%emt 0:00:47] D19: Damengambit (Slawische Verteidigung, Hauptvariante)} (14... Be7 15. Ng5 Bxg5 16. Qxg5 Bg6 17. Qxd8 Rfxd8 18. Be2 Nb8 19. Be3 Nc6 20. Rfc1 Rdc8 21. Rc3 Nb4 22. Raa3 a5 {½-½ (38) Radjabov,T (2748)-Mamedov,R (2704) Shamkir 2018}) 15. Bxg6 {[%emt 0:02:14]} fxg6 {[%emt 0:00:07]} 16. a5 {[%emt 0:00:06]} b6 {[%emt 0:22:14]} 17. Ng5 {[%emt 0:23:24]} Re8 $1 {[%emt 0:00:19]} 18. a6 {[%emt 0:00:01]} h6 $146 {[%emt 0:02:37]} ({Vorgänger:} 18... Rc8 19. Nf3 {½-½ (19) Krygier,I (2383)-Zawadka,Z (2329) ICCF email 2006}) 19. Qb3 {[%emt 0:08:09]} Bf8 {[%emt 0:01:32]} 20. Nf3 {[%emt 0:01:48]} Qe7 {[%emt 0:05:29]} 21. Bd2 {[%emt 0:07:02]} Rac8 {[%emt 0:01:25]} 22. Rfc1 {[%emt 0:01:04]} Nb8 {[%emt 0:01:04]} 23. Qd3 {[%emt 0:00:27]} g5 $14 {[%emt 0:01:27]} 24. b4 {[%emt 0:00:22]} Qd7 {[%emt 0:03:46]} 25. b5 {[%emt 0:12:53]} Rxc1+ {[%emt 0:05:01]} 26. Rxc1 {[%emt 0:00:08]} Rc8 {[%emt 0:00:46]} 27. Rxc8 {[%emt 0:03:34]} Qxc8 {[%emt 0:00:02]} 28. g3 {[%emt 0:04:08]} Qe8 {[%emt 0:08:26]} 29. h3 {[%emt 0:02:43]} Be7 {[%emt 0:03:39]} 30. Kg2 {[%emt 0:01:16]} Nd7 {[%emt 0:04:07]} 31. Qc2 {[%emt 0:00:51]} Nf8 {[%emt 0:00:39]} 32. Qd3 {[%emt 0:12:29]} Qg6 {[%emt 0:01:23]} 33. Qc3 Qe8 {[%emt 0:00:33]} 34. Qb3 {[%emt 0:09:18]} Kf7 {[%emt 0:01:39]} 35. Ne1 {[%emt 0:02:19]} Qd7 {[%emt 0:04:05]} 36. Qd3 {[%emt 0:01:54]} Qc8 {[%emt 0:02:18]} 37. Nc2 {[%emt 0:00:17]} Ng6 {[%emt 0:00:40]} 38. Ne3 {[%emt 0:01:55]} Nf8 {[%emt 0:01:32]} 39. Qe2 {[%emt 0:01:04]} Kg8 {[%emt 0:03:10]} 40. Qd3 {[%emt 0:01:19]} Qe8 {[%emt 0:00:57]} 41. Qb3 {[%emt 0:00:47]} Qd7 {[%emt 0:00:29]} 42. Nd1 {[%emt 0:00:55]} Qe8 {[%emt 0:03:37]} 43. f3 {[%emt 0:02:13]} Qg6 {[%emt 0:01:00]} 44. Ba5 {[%emt 0:01:19]} Nd7 {[%emt 0:02:16]} 45. Be1 {[%emt 0:00:13]} Qe8 {[%emt 0:01:06]} 46. Nc3 {[%emt 0:00:32]} Nf8 {[%emt 0:01:33]} 47. Na4 {[%emt 0:00:15]} Bd8 {[%emt 0:01:13]} 48. Qd3 {[%emt 0:00:20]} Be7 {[%emt 0:04:18]} 49. Bd2 {[%emt 0:01:05]} Qd7 {[%emt 0:00:24]} 50. Kf2 {[%emt 0:00:29]} Qc7 {[%emt 0:00:34]} 51. Qb3 {[%emt 0:00:36]} Nd7 {[%emt 0:02:35]} 52. Ke2 {[%emt 0:01:12]} Kf7 {[%emt 0:00:36]} 53. Kf2 {[%emt 0:00:33]} Nf8 {[%emt 0:01:40]} 54. Qd3 {[%emt 0:00:17]} g6 {[%emt 0:00:31]} 55. Kg2 {[%emt 0:00:34]} Nd7 {[%emt 0:00:33]} 56. Nb2 {[%emt 0:00:17]} Nf8 {[%emt 0:00:20]} 57. Qb3 {[%emt 0:00:18]} Qc8 {[%emt 0:01:42]} 58. Nd3 {[%emt 0:00:04]} Qd7 {[%emt 0:00:11]} 59. Ne1 {[%emt 0:00:13]} Qc7 {[%emt 0:00:17]} 60. Nc2 {[%emt 0:00:18]} Qd7 {[%emt 0:00:11]} 61. Qd3 {[%emt 0:00:02]} Qc7 {[%emt 0:01:17]} 62. Kf2 {[%emt 0:00:13]} Qc8 {[%emt 0:00:26]} 63. Ke2 {[%emt 0:00:19]} Qc7 {[%emt 0:00:06]} 64. Kd1 {[%emt 0:00:17]} Nd7 {[%emt 0:00:14]} 65. Bc3 {[%emt 0:00:58]} Qc8 {[%emt 0:00:11]} 66. Bb2 {[%emt 0:01:01]} Qc7 {[%emt 0:00:10]} 67. Ne3 {[%emt 0:00:19]} Kg7 {[%emt 0:00:33]} 68. Qb3 {[%emt 0:00:35]} Qd8 {[%emt 0:01:45]} 69. Qc2 {[%emt 0:01:21]} Nb8 {[%emt 0:00:04]} 70. Bc3 {[%emt 0:02:27]} Qf8 {[%emt 0:00:26]} 71. Ke2 {[%emt 0:00:00]} Qc8 {[%emt 0:00:15]} 72. Qb3 {[%emt 0:00:00]} Qd7 {[%emt 0:00:12]} 73. Nd1 {[%emt 0:00:32]} Qc7 {[%emt 0:00:15]} 74. Bd2 {[%emt 0:00:20]} Qc8 {[%emt 0:00:33]} 75. Nf2 {[%emt 0:01:47]} Qc7 {[%emt 0:00:12]} 76. Nd3 {[%emt 0:00:14]} Kf7 {[%emt 0:00:26]} 77. Nb2 {[%emt 0:02:09]} Nd7 {[%emt 0:00:02]} 78. Bc3 {[%emt 0:00:21]} Qc8 {[%emt 0:00:18]} 79. Nd1 {[%emt 0:00:12]} Kg7 {[%emt 0:00:20]} 80. Bb2 {[%emt 0:00:13]} Qc7 {[%emt 0:00:25]} 81. Kd2 {[%emt 0:00:16]} Qc8 {[%emt 0:00:14]} 82. Ne3 {[%emt 0:00:08]} Qf8 {[%emt 0:00:10]} 83. Ke2 {[%emt 0:00:11]} Qc8 {[%emt 0:00:05]} 84. Nd1 {[%emt 0:01:09]} Qc7 {[%emt 0:00:46]} 85. Nf2 {[%emt 0:00:10]} Qc8 {[%emt 0:00:12]} 86. Nd3 {[%emt 0:00:27]} Kf7 {[%emt 0:00:01]} 87. Bc1 {[%emt 0:00:23]} Qc7 {[%emt 0:00:11]} 88. Bd2 {[%emt 0:00:16]} Nb8 {[%emt 0:00:12]} 89. Nb2 {[%emt 0:00:26]} Nd7 {[%emt 0:00:06]} 90. Nd3 {[%emt 0:00:04]} Nb8 {[%emt 0:00:05]} 91. Kd1 {[%emt 0:00:37]} Nd7 {[%emt 0:00:12]} 92. Ne1 {[%emt 0:01:51]} Qc8 {[%emt 0:00:12]} 93. Ng2 {[%emt 0:00:22]} Kg7 {[%emt 0:00:29]} 94. g4 {[%emt 0:00:22]} Qc7 {[%emt 0:00:45]} 95. Qd3 {[%emt 0:00:15]} Qc8 {[%emt 0:00:15]} 96. Be1 {[%emt 0:00:18]} Qc7 {[%emt 0:00:17]} 97. Bd2 {[%emt 0:01:20]} Qc8 {[%emt 0:00:23]} 98. Ke2 {[%emt 0:00:35]} Qc7 {[%emt 0:00:08]} 99. Be3 {[%emt 0:00:33]} Qc8 {[%emt 0:00:04]} 100. Kd1 {[%emt 0:00:04]} Qc7 {[%emt 0:00:02]} 101. Bf2 {[%emt 0:00:07]} Qc8 {[%emt 0:00:03]} 102. Be1 {[%emt 0:00:25]} Qc7 {[%emt 0:00:09]} 103. f4 {[%emt 0:00:09]} gxf4 {[%emt 0:00:07]} 104. Nxf4 {[%emt 0:00:05]} Nf8 {[%emt 0:00:02]} 105. h4 {[%emt 0:00:26]} Qd7 {[%emt 0:01:48]} 106. h5 {[%emt 0:00:15]} g5 {[%emt 0:00:17]} 107. Ne2 {[%emt 0:00:41]} Qe8 {[%emt 0:00:22]} 108. Nc1 {[%emt 0:01:48]} Qd7 {[%emt 0:00:18]} 109. Bd2 {[%emt 0:00:06]} Qe8 {[%emt 0:00:08]} 110. Na2 {[%emt 0:00:25]} Qf7 {[%emt 0:01:09]} 111. Ke2 {[%emt 0:00:15]} Qe8 {[%emt 0:00:06]} 112. Bb4 {[%emt 0:01:19]} Qf7 {[%emt 0:00:43]} 113. Bd2 {[%emt 0:01:12]} Qe8 {[%emt 0:00:02]} 114. Qb3 {[%emt 0:00:28]} Nd7 {[%emt 0:00:55]} 115. Nc3 {[%emt 0:00:25]} Qc8 {[%emt 0:00:56]} 116. Nd1 {[%emt 0:00:38]} Qc7 {[%emt 0:00:34]} 117. Ne3 {[%emt 0:00:27]} Qc8 {[%emt 0:00:16]} 118. Nc2 {[%emt 0:00:33]} Qc7 {[%emt 0:00:57]} 119. Kd1 {[%emt 0:01:08]} Qc8 {[%emt 0:00:23]} 120. Qd3 {[%emt 0:00:21]} Qe8 {[%emt 0:00:35]} 121. Ke2 {[%emt 0:00:45]} Nf8 {[%emt 0:01:54]} 122. Bb4 {[%emt 0:00:12]} Qf7 {[%emt 0:00:27]} 123. Bd2 {[%emt 0:00:10]} Qe8 {[%emt 0:00:14]} 124. Kd1 {[%emt 0:00:15]} Qf7 {[%emt 0:00:09]} 125. Ke1 {[%emt 0:00:29]} Qe8 {[%emt 0:00:14]} 126. Ke2 {[%emt 0:00:47]} Qf7 {[%emt 0:00:51]} 127. Qc3 {[%emt 0:00:00]} Qe8 {[%emt 0:09:09]} 128. Qc6 {[%emt 0:00:00]} Qd7 {[%emt 0:00:01]} 129. Bb4 {[%emt 0:00:11]} Kf7 {[%emt 0:00:01]} 130. Kd2 {[%emt 0:01:20]} Ke8 {[%emt 0:08:45]} 131. Bxe7 {[%emt 0:00:30]} Kxe7 {[%emt 0:00:28]} 132. Nb4 {[%emt 0:00:16]} Kd8 {[%emt 0:00:49]} 133. Qa8+ {[%emt 0:01:01]} Ke7 {[%emt 0:00:22]} 134. Nc6+ {[%emt 0:00:01]} Kf7 {[%emt 0:00:06]} 135. Qxa7 {[%emt 0:00:06]} 1-0

[Event "ARM-ch Club 2018"]
[Site "Yerevan"]
[Date "2018.06.13"]
[Round "6"]
[White "Gharagyozyan, Artur"]
[Black "Vardanyan, Aram"]
[Result "1-0"]
[ECO "B56"]
[WhiteElo "2310"]
[BlackElo "1866"]
[Annotator "ChessBase"]
[PlyCount "59"]
[EventDate "2018.??.??"]
[EventCountry "ARM"]
[SourceTitle "playchess.com"]
[Source "ChessBase"]
[SourceQuality "1"]
[TimeControl "5400+30"]

1. e4 {[%emt 0:00:00]} c5 {[%emt 0:02:25]} 2. Nf3 {[%emt 0:00:05]} d6 {[%emt 0:00:33]} 3. d4 {[%emt 0:00:04]} Nf6 {[%emt 0:01:05]} 4. Nc3 {[%emt 0:00:04]} cxd4 {[%emt 0:00:22]} 5. Nxd4 {[%emt 0:00:39]} Nc6 {[%emt 0:00:55]} 6. Be3 {[%emt 0:00:21]} e6 {[%emt 0:01:44]} 7. Qd2 {[%emt 0:00:23]} Be7 {[%emt 0:00:29]} 8. f3 {[%emt 0:00:05]} a6 {[%emt 0:00:50]} 9. O-O-O {[%emt 0:00:08]} Qc7 {[%emt 0:01:39]} 10. Kb1 {[%emt 0:00:07]} Bd7 {[%emt 0:03:11]} 11. Bd3 {[%emt 0:00:24]} b5 {[%emt 0:02:50]} 12. Bxb5 {[%emt 0:01:01]} axb5 {[%emt 0:05:44]} 13. Ndxb5 {[%emt 0:00:05]} Qb8 {[%emt 0:02:02]} 14. Nxd6+ {[%emt 0:00:03]} Bxd6 {[%emt 0:00:19]} 15. Qxd6 {[%emt 0:00:06]} Qxd6 {[%emt 0:00:28]} 16. Rxd6 {[%emt 0:00:04]} Ne5 {[%emt 0:05:50]} 17. b3 {[%emt 0:01:41]} O-O {[%emt 0:02:40]} 18. Bd4 {[%emt 0:02:00]} Ne8 {[%emt 0:02:40]} 19. Bxe5 {[%emt 0:00:08]} Nxd6 {[%emt 0:00:01]} 20. Bxd6 {[%emt 0:00:07]} Rfc8 {[%emt 0:00:02]} 21. Kb2 {[%emt 0:00:47]} Be8 {[%emt 0:01:48]} 22. e5 {[%emt 0:00:10]} f6 {[%emt 0:00:56]} 23. Ne4 {[%emt 0:00:23]} fxe5 {[%emt 0:01:14]} 24. c4 {[%emt 0:01:46]} Bg6 {[%emt 0:00:57]} 25. Re1 {[%emt 0:00:10]} Ra6 {[%emt 0:00:22]} 26. c5 {[%emt 0:00:06]} Rcc6 {[%emt 0:00:50]} 27. b4 {[%emt 0:00:08]} Bxe4 {[%emt 0:00:19]} 28. Rxe4 {[%emt 0:00:06]} Rxd6 {[%emt 0:00:04]} 29. cxd6 {[%emt 0:00:05]} Rxd6 {[%emt 0:00:03]} 30. b5 {[%emt 0:00:16]} 1-0

[Event "ARM-ch Club 2018"]
[Site "Yerevan"]
[Date "2018.06.13"]
[Round "6"]
[White "Shmavonyan, Areg"]
[Black "Bakunts, Rafael"]
[Result "0-1"]
[ECO "C77"]
[WhiteElo "2103"]
[BlackElo "2395"]
[Annotator "NA"]
[PlyCount "92"]
[EventDate "2018.??.??"]
[EventCountry "ARM"]
[SourceTitle "playchess.com"]
[Source "ChessBase"]
[SourceQuality "1"]
[TimeControl "5400+30"]

1. e4 {[%emt 0:00:00]} e5 {[%emt 0:05:08]} 2. Nf3 {[%emt 0:00:00]} Nc6 {[%emt 0:00:06]} 3. Bb5 {[%emt 0:00:04]} a6 {[%emt 0:00:05]} 4. Ba4 {[%emt 0:00:04]} Nf6 {[%emt 0:00:03]} 5. d3 {[%emt 0:00:04]} b5 {[%emt 0:00:05]} 6. Bb3 {[%emt 0:00:03]} Bc5 {[%emt 0:00:07]} 7. c3 {[%emt 0:01:04]} d6 {[%emt 0:02:20]} 8. O-O {[%emt 0:00:07]} h6 {[%emt 0:05:05]} 9. Nbd2 {[%emt 0:09:19] C78: Ruy Lopez: Archangelsk and Möller Defences} (9. Re1 O-O 10. Nbd2 Ne7 11. a4 b4 12. d4 bxc3 13. bxc3 exd4 14. cxd4 Bb4 15. Re3 Ng6 16. h3 a5 {0-1 (65) Zhigalko,S (2638)-Giri,A (2762) Heraklio 2017}) 9... O-O {[%emt 0:00:30] LiveBook: 28 Games} 10. h3 {[%emt 0:00:49]} Bb6 {[%emt 0:01:14]} 11. Re1 {[%emt 0:00:13]} Na5 {[%emt 0:00:05]} 12. Bc2 {[%emt 0:00:11]} c5 {[%emt 0:00:04]} 13. Nf1 {[%emt 0:04:24]} Nc6 {[%emt 0:00:09]} 14. Ng3 {[%emt 0:02:43]} Re8 {[%emt 0:04:03]} 15. Nh2 {[%emt 0:04:47]} Ne7 {[%emt 0:06:26]} 16. Ng4 $146 {[%emt 0:08:58]} ({Predecessor:} 16. Nhf1 d5 17. Ne3 d4 18. cxd4 exd4 19. Ng4 Nxg4 20. hxg4 {0-1 (33) Castin,A (1836)-Karpatchev,A (2491) Saint Affrique 2009}) 16... Nh7 {[%emt 0:06:14]} 17. Bb3 {[%emt 0:13:13]} Be6 $16 {[%emt 0:05:17]} (17... Ng6 $14) 18. Bxe6 {[%emt 0:09:05]} fxe6 {[%emt 0:03:25]} 19. Bxh6 {[%emt 0:08:16]} gxh6 {[%emt 0:02:55]} 20. Nh5 {[%emt 0:00:23]} Ng6 {[%emt 0:10:49]} 21. Nxh6+ {[%emt 0:01:43]} Kf8 {[%emt 0:00:10]} 22. Qf3+ {[%emt 0:01:46]} Nf4 {[%emt 0:00:15]} 23. Nxf4 {[%emt 0:02:20]} exf4 {[%emt 0:00:17]} 24. Qxf4+ {[%emt 0:00:06]} Kg7 {[%emt 0:20:03]} 25. Re3 Ng5 {[%emt 0:10:45]} 26. h4 {[%emt 0:15:30]} Kxh6 {[%emt 0:00:36]} 27. Rg3 {[%emt 0:07:36]} Rg8 {[%emt 0:03:00]} 28. hxg5+ {[%emt 0:03:15]} Kg7 {[%emt 0:00:40]} 29. e5 {[%emt 0:05:23]} Bc7 {[%emt 0:00:16]} 30. Qg4 {[%emt 0:01:57]} dxe5 {[%emt 0:00:45]} 31. Qxe6 {[%emt 0:00:25]} Qd6 {[%emt 0:00:09]} 32. Qg4 {[%emt 0:01:11]} Raf8 {[%emt 0:00:44]} 33. Re1 {[%emt 0:00:52]} Rf4 {[%emt 0:00:21]} 34. Qe2 {[%emt 0:00:26]} Rh8 {[%emt 0:00:15]} 35. Qe3 {[%emt 0:00:32]} c4 {[%emt 0:02:03]} 36. Rd1 {[%emt 0:00:39]} Bb6 {[%emt 0:00:58]} 37. d4 {[%emt 0:00:20]} exd4 {[%emt 0:00:09]} 38. cxd4 {[%emt 0:00:25]} Bxd4 {[%emt 0:00:46]} 39. Rf3 {[%emt 0:00:43]} Bxe3 {[%emt 0:02:33]} 40. Rxd6 {[%emt 0:00:05]} Rxf3 {[%emt 0:00:07]} 41. gxf3 {[%emt 0:00:12]} Bc1 {[%emt 0:00:10]} 42. f4 {[%emt 0:01:02]} Rf8 {[%emt 0:00:50]} 43. Rxa6 {[%emt 0:00:37]} Bxb2 {[%emt 0:00:05]} 44. Ra7+ {[%emt 0:00:24]} Rf7 {[%emt 0:00:10]} 45. Ra6 {[%emt 0:00:36]} c3 {[%emt 0:00:41]} 46. Rc6 {[%emt 0:00:05]} Rxf4 {[%emt 0:00:05]} 0-1

[Event "ARM-ch Club 2018"]
[Site "Yerevan"]
[Date "2018.06.13"]
[Round "6"]
[White "Khachatryan, Anna"]
[Black "Petrosian, Davit G"]
[Result "0-1"]
[ECO "A41"]
[WhiteElo "1955"]
[BlackElo "2400"]
[Annotator "NA"]
[PlyCount "158"]
[EventDate "2018.??.??"]
[EventCountry "ARM"]
[SourceTitle "playchess.com"]
[Source "ChessBase"]
[SourceQuality "1"]
[TimeControl "5400+30"]

1. d4 {[%emt 0:00:00]} d6 {[%emt 0:00:26]} 2. Bf4 {[%emt 0:01:55]} g6 {[%emt 0:01:22]} 3. Nc3 {[%emt 0:03:08]} Bg7 {[%emt 0:01:34]} 4. e4 {[%emt 0:00:08]} Nc6 {[%emt 0:03:45]} 5. Nge2 {[%emt 0:05:06]} e5 {[%emt 0:18:12]} 6. Be3 {[%emt 0:12:19]} exd4 {[%emt 0:02:14]} 7. Nxd4 {[%emt 0:00:39]} Nf6 $11 {[%emt 0:00:35] LiveBook: 3 Games} 8. Be2 {[%emt 0:13:58]} O-O {[%emt 0:01:03]} 9. O-O {[%emt 0:01:53]} Re8 {[%emt 0:02:07]} 10. f3 {[%emt 0:11:35]} Ne5 {[%emt 0:20:26]} 11. Qd2 {[%emt 0:08:42]} d5 {[%emt 0:02:16]} 12. exd5 {[%emt 0:16:40]} Nxd5 {[%emt 0:00:07]} 13. Nxd5 {[%emt 0:00:08]} Qxd5 {[%emt 0:00:03]} 14. Rfd1 {[%emt 0:05:02]} Nc4 {[%emt 0:02:37]} 15. Bxc4 {[%emt 0:00:05]} Qxc4 {[%emt 0:00:05]} 16. c3 {[%emt 0:02:43]} c5 {[%emt 0:01:31]} 17. Nb3 {[%emt 0:04:06]} b6 {[%emt 0:01:11]} 18. Qf2 {[%emt 0:00:26]} Bf5 {[%emt 0:01:56]} 19. Nd2 Qa4 {[%emt 0:01:38]} 20. Nf1 {[%emt 0:04:33]} Rad8 {[%emt 0:03:09]} 21. Rxd8 {[%emt 0:00:52]} Rxd8 {[%emt 0:00:03]} 22. Ng3 {[%emt 0:00:46]} Be6 {[%emt 0:01:14]} 23. a3 {[%emt 0:02:02]} f5 {[%emt 0:03:52]} 24. Bg5 {[%emt 0:01:08]} Rd1+ {[%emt 0:05:09]} 25. Rxd1 {[%emt 0:00:05]} Qxd1+ {[%emt 0:00:06]} 26. Qf1 {[%emt 0:00:12]} Qxf1+ {[%emt 0:01:11]} 27. Kxf1 {[%emt 0:00:01]} Kf7 {[%emt 0:00:07]} 28. Bf4 {[%emt 0:02:04]} Bc4+ {[%emt 0:00:04]} 29. Ke1 {[%emt 0:00:14]} Ke6 {[%emt 0:00:04]} 30. Kd2 {[%emt 0:00:35]} Be5 {[%emt 0:05:37]} 31. Ke3 {[%emt 0:01:25]} Bf6 {[%emt 0:00:06]} 32. Bb8 {[%emt 0:00:51]} Kd7 {[%emt 0:01:02]} 33. Ne2 {[%emt 0:02:00]} a5 {[%emt 0:02:13]} 34. Nc1 {[%emt 0:00:36]} Kc6 {[%emt 0:00:50]} 35. g4 {[%emt 0:00:47]} fxg4 36. fxg4 a4 {[%emt 0:04:56]} 37. Nd3 {[%emt 0:01:07]} Be6 {[%emt 0:01:25]} 38. h3 {[%emt 0:00:29]} Bc8 {[%emt 0:03:08]} 39. Ke4 {[%emt 0:00:29]} Kb5 {[%emt 0:05:03]} 40. Ne5 {[%emt 0:00:34]} Be6 {[%emt 0:00:41]} 41. Kd3 {[%emt 0:00:32]} Bg5 {[%emt 0:01:09]} 42. c4+ {[%emt 0:00:24]} Ka6 {[%emt 0:00:10]} 43. Nf3 {[%emt 0:00:17]} Be7 {[%emt 0:00:37]} 44. Be5 {[%emt 0:00:11]} h5 {[%emt 0:00:56]} 45. gxh5 {[%emt 0:00:04]} gxh5 {[%emt 0:00:05]} 46. h4 {[%emt 0:00:13]} Bg4 {[%emt 0:00:50]} 47. Ng5 {[%emt 0:00:02]} Kb7 {[%emt 0:00:17]} 48. Ke4 {[%emt 0:00:54]} Kc6 {[%emt 0:00:26]} 49. Ke3 {[%emt 0:00:14]} Kd7 {[%emt 0:01:27]} 50. Kd3 {[%emt 0:00:31]} Bf5+ {[%emt 0:01:15]} 51. Ke3 {[%emt 0:00:08]} Kc6 {[%emt 0:00:07]} 52. Kd2 {[%emt 0:00:22]} Bg6 {[%emt 0:00:49]} 53. Kc3 {[%emt 0:00:05]} Bd6 {[%emt 0:01:13]} 54. Bxd6 {[%emt 0:01:37]} Kxd6 {[%emt 0:00:02]} 55. Kd2 {[%emt 0:00:05]} Ke5 {[%emt 0:00:18]} 56. Ke3 {[%emt 0:00:02]} Kf5 {[%emt 0:02:03]} 57. Kf3 {[%emt 0:00:00]} Be8 {[%emt 0:00:28]} 58. Kg3 {[%emt 0:00:27]} Ke5 {[%emt 0:00:55]} 59. Nh7 {[%emt 0:00:32]} Bf7 {[%emt 0:02:21]} 60. Nf8 {[%emt 0:00:23]} Bxc4 {[%emt 0:01:13]} 61. Nd7+ {[%emt 0:00:03]} Kd6 {[%emt 0:00:24]} 62. Nf6 {[%emt 0:01:09]} Bf7 {[%emt 0:00:26]} 63. Kf4 {[%emt 0:00:04]} b5 {[%emt 0:00:23]} 64. Ke3 {[%emt 0:01:01]} Ke5 {[%emt 0:00:26]} 65. Ne4 {[%emt 0:00:26]} Kd5 {[%emt 0:00:08]} 66. Nc3+ {[%emt 0:00:20]} Kc4 {[%emt 0:00:21]} 67. Kd2 {[%emt 0:00:01]} Be8 {[%emt 0:00:54]} 68. Ne4 {[%emt 0:00:14]} Kd4 {[%emt 0:00:18]} 69. Nf6 {[%emt 0:00:59]} Bg6 {[%emt 0:00:30]} 70. Nd7 {[%emt 0:00:25]} Be4 {[%emt 0:01:03]} 71. Nf6 {[%emt 0:00:20]} Bf3 {[%emt 0:00:07]} 72. Nd7 {[%emt 0:00:22]} b4 {[%emt 0:00:36]} 73. axb4 {[%emt 0:00:06]} cxb4 {[%emt 0:00:04]} 74. Kc1 {[%emt 0:00:12]} Be4 {[%emt 0:00:19]} 75. Nf6 {[%emt 0:00:19]} Bg6 {[%emt 0:01:20]} 76. Nd7 {[%emt 0:00:05]} a3 {[%emt 0:00:27]} 77. bxa3 {[%emt 0:00:06]} bxa3 {[%emt 0:00:03]} 78. Nb6 {[%emt 0:00:36]} Kc3 {[%emt 0:00:11]} 79. Na4+ {[%emt 0:00:10]} Kb4 {[%emt 0:00:05]} 0-1